bitfinex-derivatives/quotes_BNBF0:USTF0_20250309
["timestamp","ask_amount","ask_price","bid_price","bid_amount"]
[1741534376193,3.88991808,571.01,569.87,1.30151143]
[1741534376492,3.88991808,571.0,569.89,0.35094491]
[1741534376692,2.58432837,570.99,569.89,0.35094491]
[1741534376893,3.88991808,570.98,569.9,0.59979118]
[1741534377188,2.58356584,570.97,569.92,0.35092644]
[1741534377393,0.99367917,570.96,569.93,0.29478086]
[1741534377693,0.99367917,570.95,569.95,0.35090797]
[1741534377892,2.58356584,570.94,569.96,0.29478086]
[1741534378094,2.58356584,570.93,569.97,0.35089566]
[1741534378294,2.58356584,570.92,569.97,0.35089566]
[1741534378494,2.58356584,570.91,569.97,0.35089566]
[1741534378791,2.58356584,570.9,569.98,0.29493702]
[1741534378995,2.58356584,570.89,569.99,0.35088334]
[1741534379188,2.58018147,570.88,570.0,0.29493702]
[1741534379394,0.99237749,570.87,570.01,0.35087103]
[1741534379595,0.99237749,570.86,570.01,0.35087103]
[1741534379795,0.99237749,570.85,570.02,0.29493702]
[1741534379993,2.2979672,570.84,570.03,0.35085872]
[1741534380193,2.57909809,570.83,570.04,0.29493702]
[1741534380393,3.8846878,570.82,570.05,0.35084641]
[1741534380589,2.57909809,570.81,570.06,0.29493702]
[1741534380894,3.17309809,570.8,570.06,0.29493702]
[1741534381097,2.57909809,570.79,570.05,0.35084641]
[1741534381295,2.57909809,570.78,570.06,0.29513607]
[1741534381595,3.8846878,570.77,570.06,0.29513607]
[1741534381796,0.99237749,570.76,570.07,0.3508341]
[1741534381996,0.99237749,570.75,570.08,0.29513607]
[1741534382194,1.30558971,570.75,570.09,0.3508218]
[1741534382397,1.30558971,570.75,570.1,0.29513607]
[1741534382696,1.30558971,570.74,570.11,0.35080949]
[1741534382891,1.30558971,570.73,570.12,0.29513607]
[1741534383391,1.30558971,570.72,570.12,0.29513607]
[1741534383593,0.30504641,570.77,570.12,0.29513607]
[1741534384097,0.594,570.8,570.13,0.35079718]
[1741534384298,0.594,570.8,570.14,0.29513607]
[1741534384891,0.594,570.8,570.15,0.35078488]
[1741534385097,0.594,570.8,570.16,0.29513607]
[1741534385297,0.594,570.8,570.17,0.35077257]
[1741534385496,0.594,570.8,570.18,0.29513607]
[1741534385692,0.594,570.8,570.18,0.64590249]
[1741534385897,0.594,570.8,570.19,0.29513607]
[1741534386300,0.594,570.8,570.2,0.35075412]
[1741534386694,0.594,570.8,570.21,0.29480726]
[1741534388093,0.594,570.8,570.22,0.35074181]
[1741534388495,0.594,570.8,570.23,0.29480726]
[1741534388694,0.594,570.8,570.24,0.35072951]
[1741534388899,0.594,570.8,570.25,0.29480726]
[1741534389200,0.594,570.8,570.26,0.35071721]
[1741534389401,0.594,570.8,570.27,0.29480726]
[1741534389600,0.594,570.8,570.28,0.35070491]
[1741534389899,0.594,570.8,570.29,0.29480726]
[1741534390101,0.594,570.8,570.28,0.35070491]
[1741534390294,0.594,570.8,570.29,0.29468724]
[1741534392005,0.594,570.8,570.3,0.29447381]
[1741534392198,0.594,570.8,570.28,0.35070491]
[1741534392199,0.594,570.8,570.29,0.29447381]
[1741534392403,0.594,570.8,570.3,0.29447381]
[1741534392599,0.594,570.8,570.29,0.29447381]
[1741534396909,0.794,570.79,570.29,0.29447381]
[1741534397310,0.794,570.79,570.28,0.35070491]
[1741534397611,0.794,570.79,570.29,0.29462037]
[1741534398813,0.78,570.78,570.29,0.29462037]
[1741534401013,0.754,570.77,570.29,0.29462037]
[1741534401212,1.443,570.77,570.29,0.29462037]
[1741534401407,0.733,570.76,570.29,0.29462037]
[1741534402713,0.865,570.75,570.29,0.29462037]
[1741534403013,0.865,570.75,570.3,0.29478688]
[1741534403213,0.865,570.75,570.28,0.35070491]
[1741534407121,0.865,570.75,570.29,0.29476587]
[1741534407320,0.865,570.75,570.3,0.35069261]
[1741534407517,0.865,570.75,570.31,0.29476587]
[1741534408414,0.865,570.75,570.32,0.6455239]
[1741534408620,0.865,570.75,570.33,0.64551776]
[1741534408818,0.865,570.75,570.34,0.64551161]
[1741534409019,0.865,570.75,570.35,0.64550153]
[1741534409220,0.865,570.75,570.36,0.64549538]
[1741534409519,0.865,570.75,570.37,0.64548923]
[1741534409715,0.865,570.75,570.38,0.64548309]
[1741534409917,0.865,570.75,570.39,0.64547694]
[1741534410113,0.865,570.75,570.4,0.64547079]
[1741534410318,0.865,570.75,570.41,0.29483966]
[1741534413123,0.865,570.75,570.42,0.35061884]
[1741534413324,0.865,570.75,570.43,0.29483966]
[1741534413519,0.865,570.75,570.44,0.35060654]
[1741534413919,0.865,570.75,570.45,0.29477526]
[1741534414116,0.865,570.75,570.46,0.35059425]
[1741534414320,0.865,570.75,570.47,0.29477526]
[1741534414630,0.865,570.75,570.47,0.64536337]
[1741534414832,0.865,570.75,570.48,0.29477526]
[1741534415633,0.865,570.75,570.47,0.35058811]
[1741534415828,0.865,570.75,570.48,0.29464614]
[1741534422934,0.865,570.75,570.49,0.29458804]
[1741534423130,0.865,570.75,570.48,0.29458804]
[1741534423334,0.865,570.75,570.47,0.35058811]
[1741534423335,0.865,570.75,570.49,0.29458804]
[1741534423535,0.865,570.75,570.5,0.29458804]
[1741534423733,0.865,570.75,570.51,0.29458804]
[1741534423932,0.865,570.75,570.52,0.29458804]
[1741534424138,0.865,570.75,570.48,0.29458804]
[1741534424338,0.865,570.75,570.49,0.29458804]
[1741534424839,0.865,570.75,570.48,0.29458804]
[1741534425038,0.865,570.75,570.49,0.29458804]
[1741534425239,0.865,570.75,570.48,0.29458804]
[1741534425439,0.865,570.75,570.5,0.29458804]
[1741534425639,0.865,570.75,570.51,0.29458804]
[1741534425940,0.865,570.75,570.52,0.29458804]
[1741534426139,0.865,570.75,570.48,0.29458804]
[1741534426341,0.865,570.75,570.49,0.29458804]
[1741534426540,0.865,570.75,570.5,0.29444146]
[1741534426840,0.865,570.75,570.51,0.29444146]
[1741534427039,0.865,570.75,570.48,0.29444146]
[1741534427243,0.865,570.75,570.49,0.29444146]
[1741534427436,0.865,570.75,570.48,0.29444146]
[1741534427639,0.865,570.75,570.49,0.29444146]
[1741534427842,0.865,570.75,570.48,0.29444146]
[1741534428038,0.865,570.75,570.5,0.29444146]
[1741534428236,0.865,570.75,570.51,0.29444146]
[1741534428437,0.865,570.75,570.48,0.29444146]
[1741534428635,0.865,570.75,570.49,0.29444146]
[1741534428939,0.865,570.75,570.5,0.29444146]
[1741534429141,0.865,570.75,570.48,0.29444146]
[1741534429937,0.865,570.75,570.47,0.35058811]
[1741534430241,0.865,570.75,570.48,0.29432907]
[1741534430840,0.865,570.75,570.47,0.35058811]
[1741534431041,0.865,570.75,570.48,0.29429292]
[1741534437845,0.865,570.75,570.49,0.29434109]
[1741534438045,0.865,570.75,570.5,0.29434109]
[1741534438238,0.865,570.75,570.51,0.29434109]
[1741534438443,0.865,570.75,570.48,0.29434109]
[1741534438747,0.865,570.75,570.49,0.29434109]
[1741534439041,0.865,570.75,570.47,0.35058811]
[1741534439042,0.865,570.75,570.48,0.29434109]
[1741534439247,0.865,570.75,570.49,0.29434109]
[1741534439446,0.865,570.75,570.48,0.29434109]
[1741534439647,0.865,570.75,570.49,0.29434109]
[1741534439842,0.865,570.75,570.48,0.29434109]
[1741534440148,0.865,570.75,570.49,0.29434109]
[1741534440344,0.865,570.75,570.48,0.29434109]
[1741534440544,0.865,570.75,570.49,0.29434109]
[1741534440742,0.865,570.75,570.48,0.29434109]
[1741534440949,0.865,570.75,570.49,0.29434109]
[1741534441147,0.865,570.75,570.48,0.29434109]
[1741534444050,0.865,570.75,570.49,0.29438199]
[1741534444250,0.865,570.75,570.48,0.29438199]
[1741534444450,0.865,570.75,570.49,0.29438199]
[1741534444651,0.865,570.75,570.5,0.29438199]
[1741534444854,0.865,570.75,570.51,0.29438199]
[1741534445047,0.865,570.75,570.52,0.29438199]
[1741534445247,0.865,570.75,570.53,0.29438199]
[1741534445446,0.865,570.75,570.48,0.29438199]
[1741534445647,0.865,570.75,570.49,0.29438199]
[1741534445850,0.865,570.75,570.5,0.29444909]
[1741534446052,0.865,570.75,570.48,0.29444909]
[1741534446853,0.865,570.75,570.47,0.35058811]
[1741534447847,2.259,570.85,570.47,0.35058811]
[1741534450351,1.593,570.85,570.47,0.35058811]
[1741534450758,1.30589018,570.84,570.47,0.35058811]
[1741534451055,2.01789018,570.84,570.47,0.35058811]
[1741534451254,1.30589018,570.83,570.47,0.35058811]
[1741534451851,0.712,570.84,570.47,0.35058811]
[1741534453051,0.712,570.84,570.48,0.29469142]
[1741534455451,0.712,570.84,570.47,0.35058811]
[1741534455650,0.712,570.84,570.48,0.29475577]
[1741534455854,0.712,570.84,570.47,0.35058811]
[1741534456052,0.712,570.84,570.48,0.29475212]
[1741534456756,0.712,570.84,570.49,0.29471249]
[1741534456953,0.712,570.84,570.48,0.29471249]
[1741534457659,0.712,570.84,570.49,0.29469898]
[1741534457859,0.712,570.84,570.47,0.35058811]
[1741534457860,0.712,570.84,570.48,0.29469898]
[1741534458656,0.712,570.84,570.47,0.35058811]
[1741534458862,0.712,570.84,570.48,0.29468178]
[1741534459659,0.712,570.84,570.47,0.35058811]
[1741534459861,0.712,570.84,570.48,0.29433828]
[1741534461868,0.712,570.84,570.49,0.35057582]
[1741534462368,0.712,570.84,570.5,0.29406047]
[1741534463065,0.712,570.84,570.51,0.29401399]
[1741534463271,0.712,570.84,570.5,0.29401399]
[1741534463468,0.712,570.84,570.51,0.29401399]
[1741534463768,0.712,570.84,570.52,0.64457137]
[1741534463962,0.712,570.84,570.52,0.35055738]
[1741534464167,0.712,570.84,570.53,0.29402055]
[1741534464669,0.712,570.84,570.54,0.35054509]
[1741534464869,0.712,570.84,570.55,0.29402055]
[1741534465669,0.712,570.84,570.56,0.3505328]
[1741534465870,0.712,570.84,570.57,0.29402055]
[1741534466069,0.712,570.84,570.58,0.35052052]
[1741534466270,0.712,570.84,570.59,0.29402055]
[1741534466866,0.712,570.84,570.6,0.35050823]
[1741534467071,0.712,570.84,570.61,0.29402055]
[1741534467274,0.712,570.84,570.62,0.35049595]
[1741534467768,0.712,570.84,570.63,0.29402055]
[1741534468068,0.712,570.84,570.64,0.35048366]
[1741534468471,0.712,570.84,570.65,0.29406063]
[1741534469070,0.712,570.84,570.64,0.35048366]
[1741534469268,0.712,570.84,570.65,0.29414266]
[1741534469469,0.712,570.84,570.64,0.35048366]
[1741534469670,0.712,570.84,570.65,0.29416193]
[1741534478287,0.712,570.84,570.66,0.29418859]
[1741534478487,0.712,570.84,570.65,0.29418859]
[1741534478682,0.712,570.84,570.66,0.29418859]
[1741534478886,0.712,570.84,570.65,0.29418859]
[1741534479096,0.712,570.84,570.66,0.29418859]
[1741534479286,0.712,570.84,570.65,0.29418859]
[1741534479489,0.712,570.84,570.64,0.35048366]
[1741534479490,0.712,570.84,570.66,0.29418859]
[1741534479788,0.712,570.84,570.67,0.29418859]
[1741534479984,1.278,570.85,570.64,0.35048366]
[1741534479985,1.278,570.85,570.65,0.29418859]
[1741534480189,1.278,570.85,570.66,0.29418859]
[1741534480384,1.278,570.85,570.65,0.29418859]
[1741534480588,1.278,570.85,570.66,0.29418859]
[1741534480787,0.61,570.85,570.67,0.29418859]
[1741534480988,0.61,570.85,570.68,0.29418859]
[1741534481191,0.61,570.85,570.65,0.29418859]
[1741534481388,0.61,570.85,570.66,0.29418859]
[1741534481688,0.61,570.85,570.67,0.29418859]
[1741534481888,0.61,570.85,570.65,0.29418859]
[1741534482190,0.61,570.85,570.66,0.29418859]
[1741534482389,0.61,570.85,570.65,0.29418859]
[1741534482584,0.61,570.85,570.67,0.29418859]
[1741534482785,0.61,570.85,570.68,0.29418859]
[1741534482991,0.61,570.85,570.65,0.29418859]
[1741534483190,0.61,570.85,570.66,0.29418859]
[1741534483390,0.61,570.85,570.65,0.29418859]
[1741534483587,0.61,570.85,570.66,0.29418859]
[1741534484091,0.61,570.85,570.67,0.29418859]
[1741534484292,0.61,570.85,570.68,0.3504591]
[1741534484491,0.61,570.85,570.69,0.29418859]
[1741534484690,0.61,570.85,570.69,0.64464155]
[1741534484887,0.61,570.85,570.7,0.29418859]
[1741534485591,0.61,570.85,570.69,0.35045296]
[1741534485789,0.61,570.85,570.7,0.29399521]
[1741534486593,0.61,570.85,570.71,0.35044067]
[1741534486796,0.61,570.85,570.72,0.29399521]
[1741534486995,0.61,570.85,570.73,0.35042839]
[1741534487394,0.61,570.85,570.74,0.29399521]
[1741534487595,0.61,570.85,570.75,0.35041611]
[1741534487795,0.61,570.85,570.76,0.29399521]
[1741534489198,0.61,570.85,570.77,0.29399627]
[1741534489398,0.61,570.85,570.76,0.29399627]
[1741534489603,0.61,570.85,570.75,0.35041611]
[1741534489604,0.61,570.85,570.77,0.29399627]
[1741534489795,0.61,570.85,570.76,0.29399627]
[1741534489999,0.61,570.85,570.77,0.29399627]
[1741534490194,0.61,570.85,570.76,0.29399627]
[1741534490392,0.61,570.85,570.78,0.29399627]
[1741534490601,2.075,571.02,570.79,0.29399627]
[1741534490799,2.075,571.02,570.76,0.29399627]
[1741534492401,2.075,571.02,570.77,0.29407416]
[1741534492601,1.268,571.02,570.76,0.29407416]
[1741534492802,1.268,571.02,570.77,0.29405108]
[1741534493001,1.268,571.02,570.78,0.29405108]
[1741534493202,1.268,571.02,570.79,0.29405108]
[1741534493403,1.268,571.02,570.76,0.29405108]
[1741534493602,1.268,571.02,570.77,0.29405108]
[1741534493901,1.268,571.02,570.78,0.29405108]
[1741534494099,1.268,571.02,570.76,0.29405108]
[1741534494397,1.268,571.02,570.77,0.29405108]
[1741534494601,1.268,571.02,570.76,0.29405108]
[1741534494802,1.268,571.02,570.75,0.35041611]
[1741534498998,1.30207011,571.01,570.75,0.35041611]
[1741534499905,2.29314083,571.0,570.17,1.30151143]
[1741534500198,3.87885397,570.99,570.18,0.29449898]
[1741534500399,0.99107072,570.98,570.18,0.29449898]
[1741534500704,0.991162,570.97,570.18,0.29449898]
[1741534500898,2.29323211,570.96,570.18,0.29449898]
[1741534501097,0.991162,570.95,570.19,0.35076027]
[1741534501305,2.29323211,570.94,570.2,0.29449898]
[1741534501604,0.991162,570.93,570.21,0.64516491]
[1741534501803,1.30207011,570.93,570.22,0.64515875]
[1741534501998,1.30207011,570.92,570.23,0.29441694]
[1741534502198,1.30207011,570.92,570.24,0.35072951]
[1741534502401,1.30207011,570.92,570.25,0.29441694]
[1741534502602,1.30207011,570.91,570.25,0.29441694]
[1741534502800,1.85607011,570.91,570.25,0.29441694]
[1741534503001,1.30207011,570.9,570.25,0.29441694]
[1741534503506,0.554,570.91,570.25,0.29441694]
[1741534503799,0.554,570.91,570.26,0.35071721]
[1741534504004,0.806,570.9,570.27,0.29441694]
[1741534504602,0.806,570.9,570.28,0.35070491]
[1741534505804,0.694,570.89,570.28,0.35070491]
[1741534506304,1.30132806,570.88,570.28,0.35070491]
[1741534506506,1.30132806,570.88,570.29,0.29453258]
[1741534506702,1.30132806,570.87,570.29,0.29453258]
[1741534506906,1.30132806,570.87,570.29,0.64523134]
[1741534507106,1.30132806,570.87,570.3,0.29453258]
[1741534507306,0.694,570.89,570.3,0.29453258]
[1741534508505,0.694,570.89,570.29,0.35069876]
[1741534508705,0.694,570.89,570.3,0.29442421]
[1741534510103,0.802,570.88,570.3,0.29442421]
[1741534510300,0.802,570.88,570.29,0.35069876]
[1741534510507,0.802,570.88,570.3,0.2943819]
[1741534511707,0.802,570.88,570.31,0.35068646]
[1741534511904,0.802,570.88,570.32,0.2943819]
[1741534512099,0.802,570.88,570.33,0.35067417]
[1741534512305,0.802,570.88,570.34,0.2943819]
[1741534512603,0.802,570.88,570.35,0.35066187]
[1741534512802,0.802,570.88,570.36,0.2943819]
[1741534513206,0.802,570.88,570.37,0.35064957]
[1741534513402,0.802,570.88,570.38,0.2943819]
[1741534513601,0.802,570.88,570.39,0.35063728]
[1741534513803,0.802,570.88,570.4,0.2943819]
[1741534514006,0.802,570.88,570.41,0.35062498]
[1741534514204,0.802,570.88,570.42,0.2943819]
[1741534516012,0.834,570.87,570.42,0.2943819]
[1741534517813,0.834,570.87,570.43,0.29415383]
[1741534518008,0.834,570.87,570.42,0.29415383]
[1741534518212,0.834,570.87,570.43,0.29415383]
[1741534518413,0.834,570.87,570.42,0.29415383]
[1741534518610,0.834,570.87,570.43,0.29415383]
[1741534518810,0.834,570.87,570.42,0.29415383]
[1741534519013,0.834,570.87,570.43,0.29415383]
[1741534519216,1.345,570.86,570.44,0.29415383]
[1741534519410,1.345,570.86,570.42,0.29415383]
[1741534519610,1.345,570.86,570.43,0.29415383]
[1741534519814,1.345,570.86,570.44,0.29415383]
[1741534520012,1.345,570.86,570.45,0.29415383]
[1741534520212,1.345,570.86,570.46,0.29415383]
[1741534520412,1.345,570.86,570.42,0.29415383]
[1741534527825,1.345,570.86,570.43,0.35061269]
[1741534528022,1.345,570.86,570.44,0.29415383]
[1741534528221,1.345,570.86,570.45,0.3506004]
[1741534528420,1.345,570.86,570.46,0.29415383]
[1741534528617,1.345,570.86,570.45,0.3506004]
[1741534528822,1.345,570.86,570.46,0.29379077]
[1741534529223,1.345,570.86,570.45,0.3506004]
[1741534529524,1.345,570.86,570.46,0.29377254]
[1741534530121,0.737,570.85,570.46,0.29377254]
[1741534530318,0.737,570.85,570.45,0.3506004]
[1741534530519,0.737,570.85,570.46,0.29368826]
[1741534531024,0.537,570.84,570.46,0.29368826]
[1741534532926,0.537,570.84,570.45,0.3506004]
[1741534533127,0.537,570.84,570.47,0.29375398]
[1741534533326,0.537,570.84,570.48,0.29375398]
[1741534533525,0.537,570.84,570.46,0.29375398]
[1741534533722,0.537,570.84,570.47,0.29375398]
[1741534533927,0.537,570.84,570.46,0.29375398]
[1741534534228,0.812,570.83,570.47,0.29383354]
[1741534534530,0.812,570.83,570.48,0.29383354]
[1741534534725,0.812,570.83,570.46,0.29383354]
[1741534534925,0.812,570.83,570.47,0.29383354]
[1741534535122,0.812,570.83,570.48,0.29383354]
[1741534535321,0.812,570.83,570.46,0.29383354]
[1741534536226,1.632,570.83,570.46,0.29383354]
[1741534537423,2.187,570.83,570.46,0.29383354]
[1741534537629,2.187,570.83,570.47,0.29382273]
[1741534537930,2.187,570.83,570.48,0.29382273]
[1741534538228,2.187,570.83,570.46,0.29382273]
[1741534538429,2.187,570.83,570.47,0.29382273]
[1741534538629,2.187,570.83,570.46,0.29382273]
[1741534538825,2.187,570.83,570.47,0.29382273]
[1741534539025,2.187,570.83,570.46,0.29382273]
[1741534539229,2.187,570.83,570.47,0.29382273]
[1741534539530,2.187,570.83,570.48,0.29362816]
[1741534539828,2.187,570.83,570.49,0.29362816]
[1741534540029,2.187,570.83,570.5,0.29362816]
[1741534540229,2.187,570.83,570.45,0.3506004]
[1741534540230,2.187,570.83,570.46,0.29362816]
[1741534540430,2.187,570.83,570.47,0.29362816]
[1741534540630,2.187,570.83,570.45,0.3506004]
[1741534540631,2.187,570.83,570.48,0.29362816]
[1741534540929,2.187,570.83,570.49,0.29362816]
[1741534541130,2.187,570.83,570.46,0.29362816]
[1741534541323,2.187,570.83,570.47,0.29362816]
[1741534541527,2.187,570.83,570.48,0.29362816]
[1741534541723,2.187,570.83,570.49,0.29362816]
[1741534542031,2.187,570.83,570.5,0.29362816]
[1741534542229,2.187,570.83,570.46,0.29362816]
[1741534542429,2.187,570.83,570.47,0.29362816]
[1741534542629,2.187,570.83,570.48,0.29362816]
[1741534543026,2.187,570.83,570.49,0.29362816]
[1741534543331,2.187,570.83,570.46,0.29362816]
[1741534543533,2.187,570.83,570.47,0.29362816]
[1741534543732,2.187,570.83,570.46,0.29362816]
[1741534543932,2.187,570.83,570.47,0.29362816]
[1741534544132,2.187,570.83,570.46,0.29362816]
[1741534544332,2.187,570.83,570.47,0.29362816]
[1741534544733,2.187,570.83,570.48,0.29362816]
[1741534545036,2.187,570.83,570.49,0.29392407]
[1741534545233,2.187,570.83,570.45,0.3506004]
[1741534545234,2.187,570.83,570.46,0.29392407]
[1741534545435,2.187,570.83,570.47,0.29392407]
[1741534545635,2.187,570.83,570.46,0.29392407]
[1741534545833,2.187,570.83,570.47,0.29392407]
[1741534546034,2.187,570.83,570.46,0.29392407]
[1741534546234,2.187,570.83,570.47,0.29392407]
[1741534546436,2.187,570.83,570.46,0.29392407]
[1741534546631,2.187,570.83,570.47,0.29390793]
[1741534546931,2.187,570.83,570.48,0.29390793]
[1741534547133,2.187,570.83,570.46,0.29390793]
[1741534547335,2.187,570.83,570.47,0.29390793]
[1741534547535,2.187,570.83,570.48,0.29390793]
[1741534547733,2.187,570.83,570.46,0.29390793]
[1741534547931,2.187,570.83,570.47,0.29390793]
[1741534548135,2.187,570.83,570.46,0.29390793]
[1741534548331,2.187,570.83,570.47,0.29377074]
[1741534548530,2.187,570.83,570.46,0.29377074]
[1741534548738,2.187,570.83,570.47,0.29377074]
[1741534549137,2.187,570.83,570.48,0.29377074]
[1741534549338,1.375,570.83,570.46,0.29377074]
[1741534549539,1.375,570.83,570.47,0.29377074]
[1741534549736,1.375,570.83,570.46,0.29377074]
[1741534549939,1.375,570.83,570.47,0.29377074]
[1741534550244,1.375,570.83,570.48,0.29377074]
[1741534550445,1.375,570.83,570.46,0.29377074]
[1741534550645,1.375,570.83,570.47,0.29377074]
[1741534550945,1.375,570.83,570.48,0.29377074]
[1741534551139,1.375,570.83,570.49,0.29377074]
[1741534551343,1.375,570.83,570.5,0.29377074]
[1741534551539,1.375,570.83,570.46,0.29377074]
[1741534551745,1.375,570.83,570.47,0.29377074]
[1741534551941,1.375,570.83,570.45,0.3506004]
[1741534552142,1.375,570.83,570.46,0.29378751]
[1741534552542,1.899,570.83,570.46,0.29378751]
[1741534558149,2.693,570.83,570.46,0.29378751]
[1741534560847,2.693,570.83,570.45,0.3506004]
[1741534561161,2.693,570.83,570.46,0.29386635]
[1741534561361,2.693,570.83,570.45,0.3506004]
[1741534561362,3.405,570.83,570.45,0.3506004]
[1741534562057,1.30629075,570.82,570.45,0.3506004]
[1741534562660,2.85,570.83,570.45,0.3506004]
[1741534563565,3.615,570.83,570.45,0.3506004]
[1741534565558,4.305,570.83,570.45,0.3506004]
[1741534566567,4.305,570.83,570.46,0.29410807]
[1741534566765,4.305,570.83,570.45,0.3506004]
[1741534566961,1.3069855,570.82,570.45,0.3506004]
[1741534567366,1.3069855,570.81,570.45,0.3506004]
[1741534567562,0.99488832,570.8,570.45,0.3506004]
[1741534567764,0.99490361,570.79,570.45,0.3506004]
[1741534567960,0.99490361,570.78,570.45,0.3506004]
[1741534568160,0.99490361,570.77,570.45,0.3506004]
[1741534568362,0.99490361,570.76,570.45,0.3506004]
[1741534568568,0.99490361,570.75,570.45,0.3506004]
[1741534568766,1.3069855,570.76,570.45,0.3506004]
[1741534569163,2.30150735,570.75,570.45,0.3506004]
[1741534569367,1.3069855,570.75,570.45,0.3506004]
[1741534569768,0.99417257,570.74,570.45,0.3506004]
[1741534569968,1.3069855,570.73,570.45,0.3506004]
[1741534570369,1.3069855,570.72,570.45,0.3506004]
[1741534571070,1.3069855,570.71,570.45,0.3506004]
[1741534571565,1.3069855,570.7,570.45,0.3506004]
[1741534572066,0.873,570.82,570.45,0.3506004]
[1741534572263,0.99353455,570.81,570.45,0.3506004]
[1741534572563,0.99353455,570.8,570.45,0.3506004]
[1741534572767,0.99353455,570.79,570.45,0.3506004]
[1741534573068,0.99353455,570.78,570.09,0.3050424]
[1741534573269,0.99353455,570.77,570.1,0.6452689]
[1741534573467,0.99353455,570.76,570.11,0.29445326]
[1741534573670,0.99353455,570.75,570.11,0.29445326]
[1741534573968,2.29854858,570.74,570.11,0.29445326]
[1741534574165,3.8875187,570.73,570.11,0.29445326]
[1741534574368,0.99353455,570.72,570.11,0.29445326]
[1741534574567,0.99353455,570.71,570.11,0.29445326]
[1741534574763,0.99353455,570.7,570.1,0.35081564]
[1741534574968,0.99353455,570.69,570.11,0.29463267]
[1741534575167,0.99353455,570.68,570.11,0.29463267]
[1741534575369,1.30501403,570.67,570.11,0.29463267]
[1741534575766,2.11901403,570.66,570.11,0.29463267]
[1741534576363,1.30501403,570.65,570.11,0.29463267]
[1741534576971,1.30501403,570.64,570.11,0.29463267]
[1741534577564,0.814,570.66,570.11,0.29463267]
[1741534578170,1.3024938,570.65,570.11,0.29463267]
[1741534578369,1.3024938,570.65,570.1,0.35081564]
[1741534578567,0.579,570.64,570.11,0.29481274]
[1741534580271,0.579,570.64,570.12,0.29483503]
[1741534580570,0.579,570.64,570.1,0.35081564]
[1741534580571,0.579,570.64,570.11,0.29483503]
[1741534580870,0.618,570.63,570.12,0.29483503]
[1741534581167,0.618,570.63,570.13,0.29484813]
[1741534581372,0.618,570.63,570.1,0.35081564]
[1741534581766,0.565,570.62,570.11,0.29489648]
[1741534582373,1.30027479,570.61,570.1,0.35081564]
[1741534582573,0.98971497,570.6,570.1,0.35081564]
[1741534582974,1.30027479,570.59,570.1,0.35081564]
[1741534583470,1.30027479,570.58,570.1,0.35081564]
[1741534583869,1.30027479,570.57,570.1,0.35081564]
[1741534584470,1.30027479,570.56,570.1,0.35081564]
[1741534584670,0.565,570.62,570.1,0.35081564]
[1741534585173,1.2991615,570.61,570.1,0.35081564]
[1741534585473,0.565,570.62,570.11,0.29488678]
[1741534585869,0.565,570.62,570.1,0.35081564]
[1741534587475,0.804,570.61,570.1,0.35081564]
[1741534588169,0.804,570.61,570.11,0.29483123]
[1741534589270,0.804,570.61,570.1,0.35081564]
[1741534590177,0.864,570.6,570.1,0.35081564]
[1741534590677,0.623,570.59,570.1,0.35081564]
[1741534591977,0.623,570.59,570.11,0.2949106]
[1741534591978,0.647,570.58,570.11,0.2949106]
[1741534592375,0.647,570.58,570.1,0.35081564]
[1741534592569,0.647,570.58,570.11,0.2949127]
[1741534594778,0.647,570.58,570.12,0.29487341]
[1741534594980,0.647,570.58,570.11,0.29487341]
[1741534595182,0.647,570.58,570.12,0.29487341]
[1741534595382,0.647,570.58,570.11,0.29487341]
[1741534595577,0.647,570.58,570.12,0.29487341]
[1741534595777,0.647,570.58,570.13,0.29487341]
[1741534595981,0.647,570.58,570.14,0.29487341]
[1741534596182,0.647,570.58,570.11,0.29487341]
[1741534596379,0.647,570.58,570.1,0.35081564]